bitfinex/quotes_ETHUSD_20241023
["timestamp","ask_amount","ask_price","bid_price","bid_amount"]
[1729709477240,0.62880829,2488.9,2488.8,4.8385]
[1729709477526,4.01687,2489.5,2488.7,0.803669]
[1729709477726,4.01687,2489.5,2488.5,0.8205]
[1729709477727,4.01713,2489.4,2488.8,4.01799]
[1729709478026,4.01732,2489.3,2488.8,4.01799]
[1729709478591,4.47113321,2489.5,2488.7,0.08035756]
[1729709478930,4.01745,2489.2,2488.7,4.01815]
[1729709479090,4.01745,2489.2,2488.8,4.01798]
[1729709479291,0.8259,2489.6,2488.9,0.7641]
[1729709479534,4.01687,2489.5,2489.0,4.01767]
[1729709479733,4.01737,2489.2,2488.9,0.7641]
[1729709479915,4.01759,2489.1,2488.6,4.78237]
[1729709480117,4.01737,2489.2,2488.7,4.01815]
[1729709480632,0.11315553,2489.1,2488.8,4.0179]
[1729709480874,4.01726,2489.3,2488.6,4.7824]
[1729709481006,4.01716,2489.4,2488.8,4.01799]
[1729709481007,0.11315553,2489.0,2488.8,4.01799]
[1729709481212,4.01722,2489.3,2488.8,4.496119]
[1729709481418,0.11315553,2489.2,2489.0,4.01765]
[1729709481729,4.01697,2489.5,2488.9,4.0177]
[1729709481730,4.01703,2489.4,2488.9,4.0177]
[1729709481917,0.11315553,2489.1,2488.9,4.0177]
[1729709482230,0.11315553,2489.0,2488.8,0.478209]
[1729709482401,4.01731,2489.3,2488.9,4.01783]
[1729709482605,0.11315553,2489.2,2488.8,4.01799]
[1729709482828,8.03461,2489.3,2488.8,4.01799]
[1729709483041,0.1136445,2489.2,2488.8,4.01799]
[1729709483206,0.8259,2489.6,2488.6,3.7641]
[1729709483207,4.47113321,2489.4,2488.6,3.7641]
[1729709483406,0.8259,2489.6,2488.1,4.77275]
[1729709483407,4.01839,2488.6,2488.1,4.77275]
[1729709483713,0.11363012,2488.5,2488.3,4.01877]
[1729709483929,0.11363012,2488.5,2488.4,4.01864]
[1729709484106,4.01784,2488.9,2488.4,4.01864]
[1729709484296,0.11363012,2488.5,2488.4,4.01864]
[1729709484493,4.56768,2489.0,2488.4,4.01856]
[1729709484706,0.11363012,2488.5,2488.3,4.01873]
[1729709484941,4.01783,2488.9,2488.3,5.2455875]
[1729709485120,4.01783,2488.9,2488.1,4.77276]
[1729709485121,4.01833,2488.6,2488.1,4.77276]
[1729709485451,0.11376686,2488.5,2488.1,4.77276]
[1729709485611,4.01893,2488.3,2487.7,0.8027]
[1729709485806,4.01909,2488.2,2487.7,4.82238]
[1729709486005,0.11376686,2488.1,2487.7,4.82238]
[1729709486217,4.01938,2488.0,2487.5,4.02009]
[1729709486406,4.01938,2488.0,2487.5,4.82264]
[1729709486626,0.1135583,2487.9,2487.5,4.82264]
[1729709486833,0.1135583,2487.9,2487.6,4.01991]
[1729709487139,4.81604,2488.1,2487.6,4.01991]
[1729709487345,0.1135583,2487.8,2487.7,4.01977]
[1729709487645,4.47113321,2488.3,2487.8,4.01954]
[1729709487646,9.26293321,2488.3,2487.8,4.01954]
[1729709487805,9.26293321,2488.3,2487.9,4.01938]
[1729709487806,5.24413321,2488.3,2487.9,4.01938]
[1729709488440,9.26294321,2488.3,2487.8,4.0195]
[1729709489108,9.26294321,2488.3,2487.6,3.0]
[1729709489314,4.01896,2488.2,2487.7,4.01977]
[1729709489622,4.01896,2488.2,2487.7,8.03945]
[1729709489823,4.01896,2488.2,2487.7,4.01968]
[1729709490223,4.01896,2488.2,2487.7,8.03938]
[1729709490541,4.01896,2488.2,2487.7,4.01968]
[1729709490909,4.01896,2488.2,2487.7,8.03934]
[1729709491106,9.26294321,2488.3,2487.6,3.0]
[1729709491107,4.01921,2488.1,2487.6,3.0]
[1729709491331,4.01921,2488.1,2487.6,7.01993]
[1729709491548,8.03845,2488.1,2487.6,7.01993]
[1729709491749,4.01921,2488.1,2487.6,7.01993]
[1729709492050,8.03846,2488.1,2487.6,7.01993]
[1729709492257,8.03842,2488.1,2487.6,7.01993]
[1729709492433,4.01921,2488.1,2487.6,7.01993]
[1729709492749,8.03847,2488.1,2487.6,7.01993]
[1729709492953,4.01921,2488.1,2487.6,7.01993]
[1729709493124,4.01921,2488.1,2487.7,4.01977]
[1729709493332,4.01914,2488.1,2487.7,4.01977]
[1729709493654,4.01931,2488.0,2487.6,3.0]
[1729709493825,3.78622115,2488.2,2487.6,3.0]
[1729709494152,7.80532115,2488.2,2487.7,4.01966]
[1729709495419,0.11330653,2488.1,2487.7,8.03929]
[1729709495831,0.11330653,2488.1,2487.8,4.01957]
[1729709496423,0.11330653,2488.1,2488.0,4.01929]
[1729709496665,0.773,2488.3,2488.0,4.01929]
[1729709496832,0.11274546,2488.2,2488.0,4.01929]
[1729709497034,0.7578,2488.6,2488.0,1.618586]
[1729709497350,0.01,2489.5,2488.4,4.01857]
[1729709497351,0.11274546,2488.5,2488.4,4.01857]
[1729709497721,4.7758,2488.8,2488.4,4.01857]
[1729709497917,0.11281022,2488.5,2488.4,4.01857]
[1729709498121,0.7578,2488.8,2488.4,4.01857]
[1729709498365,0.11281022,2488.5,2488.4,4.01857]
[1729709498549,3.78622115,2488.9,2488.5,4.83344]
[1729709498755,3.78622115,2488.9,2488.6,4.01822]
[1729709499071,7.80406115,2488.9,2488.4,4.822284]
[1729709501777,4.018,2488.8,2488.4,0.803734]
[1729709501939,4.018,2488.8,2488.3,4.83371]
[1729709502142,0.778,2488.6,2488.1,4.01904]
[1729709502343,3.78622115,2488.3,2487.8,4.01959]
[1729709502586,4.019,2488.2,2487.7,0.7936]
[1729709502881,4.01937,2488.0,2487.5,4.01997]
[1729709503088,4.01952,2487.9,2487.4,4.81374]
[1729709503251,4.01952,2487.9,2487.5,4.02009]
[1729709503459,4.01952,2487.9,2487.4,1.677006]
[1729709503786,8.03878,2488.0,2487.5,4.02003]
[1729709504085,4.01937,2488.0,2487.5,4.02003]
[1729709504465,4.01937,2488.0,2487.5,4.02002]
[1729709504867,4.01975,2487.8,2487.3,4.0203]
[1729709505074,0.55,2488.0,2487.3,4.0203]
[1729709505075,4.01955,2487.9,2487.3,4.02035]
[1729709505260,4.01955,2487.9,2487.2,4.78268]
[1729709505261,4.01979,2487.7,2487.2,4.78268]
[1729709505459,4.01995,2487.6,2487.2,1.642446]
[1729709505785,4.01995,2487.6,2487.2,0.7621]
[1729709505983,8.04,2487.6,2487.2,0.7621]
[1729709506186,4.0197,2487.8,2487.2,0.7621]
[1729709506395,4.56985,2487.7,2487.2,4.78257]
[1729709507244,4.01994,2487.6,2487.2,4.78257]
[1729709507664,4.79684,2487.6,2487.0,0.7514]
[1729709507888,4.79684,2487.6,2486.8,4.77249]
[1729709507889,5.25089142,2487.6,2486.8,4.77249]
[1729709508185,4.02032,2487.4,2486.9,4.02101]
[1729709508478,4.02032,2487.4,2487.0,0.08]
[1729709509548,4.02074,2487.1,2487.0,0.08]
[1729709510445,4.13280902,2487.1,2487.0,0.08]
[1729709511183,0.11206902,2487.1,2487.0,0.08]
[1729709512456,0.7527,2487.5,2487.0,0.8377]
[1729709512762,4.02026,2487.4,2487.0,0.8377]
[1729709512967,4.77283,2487.5,2487.0,4.85859]
[1729709514378,4.02027,2487.4,2487.0,4.85859]
[1729709514687,4.02027,2487.4,2487.0,0.8377]
[1729709515587,4.02048,2487.3,2487.0,0.08]
[1729709516297,4.02072,2487.2,2487.0,0.08]
[1729709516658,4.02074,2487.1,2487.0,0.08]
[1729709518454,4.02072,2487.2,2487.0,0.08]
[1729709519373,8.49443142,2487.3,2487.0,0.08]
[1729709520277,4.0206,2487.2,2487.0,0.08]
[1729709520597,8.49442142,2487.3,2487.0,0.08]
[1729709520771,4.02043,2487.3,2487.0,0.8682]
[1729709520973,4.02028,2487.4,2487.0,0.8682]
[1729709521594,4.7729,2487.5,2487.0,0.8682]
[1729709521768,4.0202,2487.5,2487.0,4.88909]
[1729709521964,4.02033,2487.4,2487.0,0.8682]
[1729709522501,8.49442142,2487.3,2487.0,0.08]
[1729709522811,4.80488,2487.2,2487.0,0.08]
[1729709523010,4.02068,2487.2,2487.0,0.08]
[1729709523370,4.02074,2487.1,2487.0,0.08]
[1729709524607,8.49442142,2487.3,2487.0,0.08]
[1729709524908,4.47399142,2487.3,2487.0,0.08]
[1729709525065,4.02005,2487.6,2487.1,4.02074]
[1729709525066,4.47399142,2487.6,2487.1,4.02074]
[1729709525270,8.49393142,2487.6,2487.1,4.02074]
[1729709525613,4.47399142,2487.3,2487.0,0.08]
[1729709525947,0.11150032,2487.2,2487.1,4.02063]
[1729709526099,0.11150032,2487.2,2487.0,0.08]
[1729709526272,4.0205,2487.3,2487.0,0.08]
[1729709526600,0.66150032,2487.2,2487.0,0.08]
[1729709526979,3.78925201,2487.1,2487.0,0.08]
[1729709527398,3.90077393,2487.1,2487.0,0.08]
[1729709527571,0.11152192,2487.1,2487.0,0.08]
[1729709527902,4.02034,2487.4,2487.0,0.08]
[1729709528065,3.78925201,2487.2,2487.0,0.08]
[1729709528514,0.11147152,2487.1,2487.0,4.10081]
[1729709528675,0.11147152,2487.1,2487.0,0.08]
[1729709531787,0.66147152,2487.1,2487.0,0.08]
[1729709531972,5.49041152,2487.1,2487.0,0.08]
[1729709532169,12.27966353,2487.1,2487.0,0.08]
[1729709532371,12.28966353,2487.1,2487.0,0.08]
[1729709532772,12.28966353,2487.1,2486.0,0.03]
[1729709532773,4.02197,2486.4,2486.0,0.03]
[1729709532969,3.78925201,2486.3,2486.1,4.02228]
[1729709533401,0.1113635,2486.2,2486.1,4.02228]
[1729709533821,3.78925201,2486.3,2486.1,4.02228]
[1729709534021,0.1113635,2486.2,2486.1,4.02228]
[1729709534316,3.78925201,2486.3,2486.1,4.02228]
[1729709534513,0.1113635,2486.2,2486.1,4.02228]
[1729709534718,3.78925201,2486.3,2486.1,4.02228]
[1729709534881,0.1113635,2486.2,2486.1,4.02228]
[1729709535219,4.61805201,2486.4,2486.1,4.02228]
[1729709535425,0.1113635,2486.2,2486.1,4.02228]
[1729709535599,4.61805201,2486.4,2486.0,4.05251]
[1729709536117,0.1113635,2486.3,2486.0,4.05251]
[1729709539118,0.1113635,2486.3,2486.1,4.02235]
[1729709540490,0.1113635,2486.3,2486.0,4.0525]
[1729709542803,3.78925201,2486.2,2486.0,0.03]
[1729709543011,8.58746201,2486.2,2486.0,0.03]
[1729709543210,0.11111861,2486.1,2486.0,0.03]
[1729709544445,0.11111861,2486.1,2486.0,4.05252]
[1729709544659,0.11111861,2486.1,2486.0,5.227972]
[1729709544810,0.62935174,2486.6,2486.2,4.02204]
[1729709545005,0.62935174,2486.6,2486.3,4.02194]
[1729709545205,0.11035515,2486.5,2486.4,4.02171]
[1729709545451,0.11035515,2486.5,2486.4,4.78341]
[1729709545624,0.11035515,2486.5,2486.4,5.74438757]
[1729709545809,0.62929645,2487.1,2486.7,4.02131]
[1729709546009,4.41854846,2487.1,2486.7,4.02131]
[1729709546252,0.11035515,2487.0,2486.8,4.02122]
[1729709546542,0.11035515,2487.0,2486.7,4.02131]
[1729709546741,0.11035515,2487.0,2486.7,4.02129]
[1729709547443,0.11035515,2487.0,2486.8,4.02122]
[1729709547653,0.11035515,2487.0,2486.9,4.79747]
[1729709547944,0.11035515,2487.0,2486.9,7.87788196]
[1729709548252,0.11035515,2487.0,2486.9,7.79747]
[1729709548431,4.59965201,2487.9,2487.4,4.02017]
[1729709548664,8.61918201,2487.9,2487.4,4.02017]
[1729709548842,4.12996515,2487.8,2487.3,4.02028]
[1729709549039,3.78925201,2487.7,2487.3,4.02028]
[1729709549565,0.11035515,2487.6,2487.3,4.02028]
[1729709550784,0.11035515,2487.6,2487.4,4.02017]
[1729709551090,0.11035515,2487.6,2487.3,4.02028]
[1729709551248,0.11035515,2487.6,2487.4,4.02015]
[1729709551444,0.11035515,2487.6,2487.5,4.7965]
[1729709551668,0.11035515,2487.6,2487.4,4.824193]
[1729709551880,0.8104,2487.6,2487.1,4.02064]
[1729709552044,0.8104,2487.6,2487.0,4.02077]
[1729709552045,0.11035515,2487.5,2487.0,4.02077]
[1729709552250,0.11035515,2487.5,2487.2,4.02057]
[1729709552479,0.11035515,2487.5,2487.4,4.02026]
[1729709552704,0.7941,2487.9,2487.4,4.02026]
[1729709552847,0.7941,2487.9,2487.5,4.01998]
[1729709553050,0.11035515,2487.8,2487.6,4.01993]
[1729709553285,0.11035515,2487.8,2487.4,4.02026]
[1729709553585,0.11035515,2487.8,2487.5,4.02008]
[1729709553903,0.11035515,2487.8,2487.5,4.01999]
[1729709555481,3.78925201,2487.7,2487.4,4.78234]
[1729709555893,0.11183867,2487.6,2487.4,4.78234]
[1729709556810,0.11183867,2487.6,2487.2,4.02047]
[1729709556811,4.13178867,2487.6,2487.2,4.02047]
[1729709557786,3.78925201,2487.5,2487.2,4.02047]
[1729709558007,3.78925201,2487.5,2487.1,0.7968]
[1729709558008,3.78925201,2487.5,2487.1,4.02074]
[1729709558203,0.11200422,2487.4,2487.1,4.02074]
[1729709558403,0.11200422,2487.4,2487.0,4.02083]
[1729709558404,0.11200422,2487.4,2487.2,4.02057]
[1729709559295,0.11200422,2487.4,2487.2,4.02049]
[1729709559689,3.78925201,2487.7,2487.3,4.80409]
[1729709560206,7.80911201,2487.7,2487.2,4.02049]
[1729709561220,7.80911201,2487.7,2487.3,4.0204]
[1729709561791,3.78925201,2487.7,2487.5,4.02008]
[1729709561994,0.7941,2487.9,2487.6,4.01992]
[1729709562392,3.78925201,2488.0,2487.6,4.01992]
[1729709562619,7.80862201,2488.0,2487.5,4.02008]
[1729709562824,4.01946,2487.9,2487.5,4.02008]
[1729709563003,7.80854201,2488.0,2487.5,8.04009]
[1729709564010,4.01945,2487.9,2487.3,4.02029]
[1729709564214,3.78925201,2487.7,2487.3,8.04063]
[1729709564424,3.78925201,2487.7,2487.4,4.02016]
[1729709565246,3.78925201,2487.7,2487.5,4.02007]
[1729709566639,3.78925201,2487.7,2487.6,4.01993]
[1729709567163,3.78925201,2487.7,2487.5,4.02007]
[1729709570069,3.78925201,2487.7,2487.5,4.02001]
[1729709570428,0.11227775,2487.6,2487.5,4.02001]
[1729709571030,0.11227775,2487.6,2487.4,4.02024]
[1729709571583,0.11227775,2487.6,2487.3,4.0203]
[1729709571771,0.11227775,2487.6,2487.3,8.04064]
[1729709572283,0.92477775,2487.6,2487.3,4.0203]
[1729709573384,0.92477775,2487.6,2487.4,4.02025]
[1729709573684,0.11227775,2487.6,2487.4,4.02025]
[1729709574069,0.11227775,2487.6,2487.5,4.0201]
[1729709574652,3.78925201,2487.9,2487.5,4.0201]
[1729709574850,0.11225616,2487.6,2487.5,4.0201]
[1729709575090,7.80872201,2487.9,2487.5,4.0201]
[1729709575558,0.11225616,2487.8,2487.6,4.01985]
[1729709575754,0.11225616,2487.8,2487.5,4.02009]
[1729709575951,0.11225616,2487.8,2487.7,4.01977]
[1729709576691,0.11225616,2487.8,2487.6,4.01992]
[1729709576886,4.13194616,2487.8,2487.1,3.8054]
[1729709577084,4.13194616,2487.8,2487.1,4.41590791]
[1729709577475,0.11225616,2487.8,2487.3,4.02027]
[1729709577677,0.11225616,2487.8,2487.4,4.02014]
[1729709578487,0.11225616,2487.8,2487.7,4.01977]
[1729709578695,0.11225616,2487.8,2487.7,4.81667]
[1729709578898,0.7726,2488.4,2488.1,4.01909]
[1729709580171,0.7726,2488.4,2487.9,4.0193]
[1729709580373,4.79125,2488.4,2488.0,4.01928]
[1729709581190,4.01898,2488.2,2487.8,4.01954]
[1729709581700,7.80819201,2488.3,2487.9,4.01937]
[1729709582065,3.78925201,2488.3,2487.9,4.01937]
[1729709582377,0.7726,2488.4,2488.1,4.01912]
[1729709583170,4.56185201,2488.4,2487.9,4.01937]
[1729709583493,4.56185201,2488.4,2488.0,4.0192]
[1729709583891,4.56185201,2488.4,2488.1,4.01911]
[1729709584285,4.56185201,2488.4,2488.0,4.0192]
[1729709584767,8.58059201,2488.4,2488.0,4.0192]
[1729709584967,4.56185201,2488.4,2488.1,4.01908]
[1729709585266,0.7726,2488.4,2488.1,4.01908]
[1729709585465,0.1126807,2488.3,2488.1,4.01908]
[1729709585966,0.1126807,2488.3,2487.7,0.7969]
[1729709586178,4.1315807,2488.3,2487.8,4.0195]
[1729709586508,3.78925201,2488.2,2487.8,4.0195]
[1729709586817,0.11270228,2488.1,2487.9,4.01942]
[1729709587006,0.11270228,2488.1,2488.0,4.01929]
[1729709587174,0.11270228,2488.1,2488.0,4.09966502]
[1729709587375,0.7694,2488.4,2488.1,4.01911]
[1729709587588,3.90191832,2488.3,2488.1,4.01911]
[1729709587787,0.11266631,2488.3,2488.1,4.01911]
[1729709589119,7.92076832,2488.3,2487.7,4.84558]
[1729709589415,7.92076832,2488.3,2487.6,4.01993]
[1729709589416,8.61235201,2488.0,2487.6,4.01993]
[1729709589621,8.61235201,2488.0,2487.5,8.04]
[1729709589773,8.61235201,2488.0,2487.5,4.01999]
[1729709589774,0.11316273,2487.9,2487.5,4.01999]
[1729709589978,0.11316273,2487.9,2487.6,4.01977]
[1729709590216,0.11316273,2487.9,2487.7,4.01974]
[1729709590838,0.11316273,2487.9,2487.8,4.81181]
[1729709591278,3.78925201,2488.3,2487.9,4.01933]
[1729709591480,7.80815201,2488.3,2487.8,4.81181]
[1729709591685,7.80815201,2488.3,2487.9,4.01942]
[1729709591686,3.78925201,2488.3,2487.9,4.01942]
[1729709592105,7.80805201,2488.3,2487.8,4.01961]
[1729709592616,4.56325201,2488.1,2487.6,4.01979]
[1729709592787,8.58245201,2488.1,2487.6,8.03961]
[1729709592992,3.78925201,2487.8,2487.4,4.02016]
[1729709593191,3.78925201,2487.8,2487.5,4.02006]
[1729709594435,4.01945,2487.9,2487.4,8.04033]
[1729709594765,4.01945,2487.9,2487.5,4.02003]
[1729709594924,3.78925201,2488.0,2487.1,5.34654253]
[1729709594925,3.78925201,2488.0,2487.1,1.32590253]
[1729709595254,7.80855201,2488.0,2487.6,4.01984]
[1729709596656,4.01946,2487.9,2487.4,4.02012]
[1729709596855,3.78925201,2487.6,2487.1,4.81653]
[1729709597151,3.78925201,2487.6,2487.3,4.02041]
[1729709598443,3.78925201,2487.4,2486.8,0.7746]
[1729709598646,4.78769,2487.7,2487.2,4.02048]
[1729709598879,4.01994,2487.6,2487.2,4.02048]
[1729709600366,0.11272383,2487.5,2487.2,4.02048]
[1729709600538,4.78769,2487.7,2487.2,4.02048]
[1729709600741,4.13266383,2487.6,2487.2,4.02048]
[1729709601036,3.93266383,2487.6,2487.2,4.02048]
[1729709601278,3.93266383,2487.6,2487.1,4.02074]
[1729709601279,0.10896637,2487.5,2487.1,4.02074]
[1729709603754,0.10896637,2487.5,2487.2,4.02056]
[1729709603978,4.78769,2487.7,2487.2,4.02056]
[1729709604154,0.1084483,2487.6,2487.2,4.02056]
[1729709605266,4.1283983,2487.6,2487.2,4.02056]
[1729709605842,4.1283983,2487.6,2487.1,4.02072]
[1729709606651,3.78925201,2487.2,2486.6,0.788]
[1729709606871,7.81032201,2486.9,2486.5,4.02171]
[1729709607069,4.02127,2486.8,2486.4,4.02185]
[1729709607378,0.7705,2486.7,2486.3,4.02201]
[1729709607547,0.10823957,2486.6,2486.3,4.02201]
[1729709607952,0.10823957,2486.6,2486.1,0.788]
[1729709608180,0.10823957,2486.6,2486.5,4.02171]
[1729709608554,0.7557,2487.0,2486.6,4.02149]
[1729709608877,0.10803079,2486.9,2486.6,4.02149]
[1729709609080,0.10803079,2486.9,2486.5,4.02171]
[1729709609240,0.10803079,2486.9,2486.6,4.0214]
[1729709609440,0.10803079,2486.9,2486.8,4.02123]
[1729709609752,0.7813,2487.3,2486.7,4.81029]
[1729709609964,0.10801639,2487.2,2486.8,4.02123]
[1729709610155,0.7813,2487.3,2486.8,4.02123]
[1729709610366,0.10801639,2487.2,2486.8,4.02123]
[1729709610568,8.59100201,2487.3,2486.8,4.02123]
[1729709610876,0.10801639,2487.2,2486.8,4.02123]
[1729709611243,8.59100201,2487.3,2486.8,4.02123]
[1729709611463,0.10801639,2487.1,2486.9,4.02104]
[1729709611678,0.7813,2487.3,2486.9,4.02104]
[1729709611973,0.7813,2487.3,2487.0,4.02086]
[1729709612983,0.7813,2487.3,2487.1,4.02074]
[1729709613190,0.7516,2487.5,2487.3,4.0203]
[1729709613403,0.7516,2487.5,2487.4,4.02026]
[1729709613701,0.7516,2487.8,2487.5,4.02003]
[1729709614197,0.7516,2487.8,2487.3,4.02037]
[1729709614497,4.54085201,2487.8,2487.3,4.501247]
[1729709614702,4.54085201,2487.8,2487.4,4.02026]
[1729709615396,0.10839791,2487.7,2487.5,4.02006]
[1729709615601,0.7516,2487.8,2487.6,4.01979]
[1729709615804,7.80822201,2488.2,2487.6,4.01993]
[1729709615805,0.10840511,2487.7,2487.6,4.01993]
[1729709616007,3.78925201,2487.8,2487.4,4.02019]
[1729709616168,0.92219866,2487.7,2487.4,4.02019]
[1729709616592,0.92219866,2487.7,2487.5,4.02009]
[1729709616779,0.92219866,2487.7,2487.4,4.02025]
[1729709617478,0.92219866,2487.7,2487.5,4.01995]
[1729709617971,3.78925201,2487.6,2487.3,4.02033]
[1729709618299,3.78925201,2487.6,2487.2,4.02044]
[1729709618300,0.10852025,2487.5,2487.2,8.04094]
[1729709618500,0.10852025,2487.5,2487.3,4.02042]
[1729709618666,0.10852025,2487.5,2487.0,4.02079]
[1729709618862,0.10852025,2487.5,2487.2,4.0205]
[1729709619068,0.10852025,2487.5,2487.2,8.041]
[1729709619266,0.10852025,2487.5,2487.2,4.0205]
[1729709619500,0.10852025,2487.5,2487.0,8.926061]
[1729709619795,0.8043,2487.3,2486.9,4.02105]
[1729709619996,0.8043,2487.3,2486.8,4.0211]
[1729709620220,0.10852025,2487.2,2486.8,4.0211]
[1729709620380,0.8043,2487.3,2486.9,4.02097]
[1729709620569,0.10852025,2487.2,2486.9,4.02097]
[1729709620773,0.8043,2487.3,2486.9,4.02097]
[1729709621093,0.10852025,2487.2,2486.9,4.02097]
[1729709621402,0.8043,2487.3,2486.9,4.02097]
[1729709621622,0.10831874,2487.2,2486.9,4.02097]
[1729709621795,0.8043,2487.3,2486.9,4.02097]
[1729709621968,0.10831874,2487.2,2486.8,4.0211]
[1729709622170,3.78925201,2487.2,2486.6,5.57914]
[1729709622405,0.10831874,2487.1,2486.7,4.02129]
[1729709622904,0.10831874,2487.1,2486.8,4.02114]
[1729709625615,0.10831874,2487.1,2486.6,8.04285]
[1729709625978,0.10831874,2487.1,2486.4,0.779]
[1729709625979,0.10831874,2487.1,2486.4,4.02178]
[1729709626173,0.55,2486.7,2485.9,4.78384]
[1729709626514,0.7936,2486.3,2485.7,1.66456613]
[1729709626674,0.8173,2486.1,2485.7,1.66456613]
[1729709626874,5.38966,2486.1,2485.7,1.66456613]
[1729709627312,5.49769801,2486.1,2485.7,1.66456613]
[1729709627512,9.28695002,2486.1,2485.7,1.66456613]
[1729709627717,5.26459002,2486.1,2485.7,1.66456613]
[1729709627890,9.28695002,2486.1,2485.7,1.66456613]
[1729709628285,12.28695002,2486.1,2485.7,1.66456613]
[1729709628689,12.28695002,2486.1,2486.0,0.03]
[1729709630388,12.29695002,2486.1,2486.0,0.03]
[1729709630921,12.28695002,2486.1,2486.0,0.03]
[1729709631259,8.26459002,2486.1,2486.0,0.03]
[1729709631517,9.28695002,2486.1,2486.0,0.03]
[1729709634096,5.26459002,2486.1,2486.0,0.03]
[1729709634815,9.28695002,2486.1,2486.0,0.03]
[1729709635221,5.26459002,2486.1,2486.0,0.03]
[1729709635428,9.28695002,2486.1,2486.0,0.03]
[1729709636091,0.7949,2485.8,2485.0,0.1207432]
[1729709636318,3.78925201,2485.3,2485.0,0.1207432]
[1729709636629,0.10697196,2485.2,2485.0,0.1207432]
[1729709636926,3.78925201,2485.3,2485.0,0.1207432]
[1729709637098,0.10697196,2485.1,2485.0,0.1207432]
[1729709637301,7.81259201,2485.5,2485.0,0.1207432]
[1729709637491,0.10697196,2485.1,2485.0,0.1207432]
[1729709638133,0.8149,2485.8,2485.0,0.1207432]
[1729709638134,5.17055201,2485.3,2485.0,0.1207432]
[1729709638291,4.44456686,2485.1,2485.0,0.1207432]
[1729709638487,4.33925201,2485.1,2485.0,0.1207432]
[1729709638773,0.10526438,2485.1,2485.0,0.1207432]
[1729709639235,0.10524996,2485.1,2485.0,0.1207432]
[1729709639431,4.57345,2485.5,2485.0,0.1207432]
[1729709639591,0.10524996,2485.4,2485.0,0.1207432]
[1729709640101,0.73495607,2485.4,2485.0,0.1207432]
[1729709640317,3.78925201,2485.3,2485.0,0.1207432]
[1729709640538,3.78925201,2485.1,2485.0,0.1207432]
[1729709640711,0.62970611,2485.4,2485.0,4.1448632]
[1729709641037,4.41895812,2485.4,2485.0,4.1448032]
[1729709641215,0.10522112,2485.3,2485.0,4.1448032]
[1729709641893,0.10522112,2485.3,2485.0,0.1207432]
[1729709642226,3.78925201,2485.2,2485.0,0.1207432]
[1729709642433,3.78925201,2485.2,2485.0,4.1448732]
[1729709642642,0.10522112,2485.1,2485.0,4.1448732]
[1729709643336,4.41895812,2485.4,2485.0,4.1448732]
[1729709643543,0.10522112,2485.1,2485.0,4.1448732]
[1729709644029,4.41895812,2485.4,2485.0,4.1448732]
[1729709644345,0.10522112,2485.3,2485.0,4.1448732]
[1729709645731,0.10522112,2485.3,2485.0,0.1207432]
[1729709647950,0.10522112,2485.3,2485.0,4.1448632]
[1729709648717,0.10522112,2485.3,2485.0,4.1447532]
[1729709649041,0.10522112,2485.3,2485.2,4.02382]
[1729709649205,0.62972503,2485.6,2485.3,4.02365]
[1729709649409,0.10522112,2485.5,2485.3,4.02365]
[1729709649605,4.02277,2485.9,2485.3,4.02365]
[1729709649826,0.10522112,2485.8,2485.4,4.02349]
[1729709650256,4.12809112,2485.8,2485.1,4.77851]
[1729709650563,4.57309,2485.7,2485.2,4.02374]
[1729709650865,3.78925201,2485.6,2485.2,4.02374]
[1729709651020,3.89481189,2485.6,2485.2,4.02374]
[1729709651218,4.77645,2485.5,2485.0,0.1207432]
[1729709651624,4.02371,2485.3,2485.0,0.1207432]
[1729709651865,0.55,2485.3,2485.0,0.1207432]
[1729709652048,3.89481189,2485.2,2485.0,0.1207432]
[1729709652358,0.10555988,2485.2,2485.0,0.1207432]
[1729709652749,4.57398,2485.1,2485.0,0.1207432]
[1729709653070,0.65555988,2485.1,2485.0,0.1207432]
[1729709653973,9.28539189,2485.1,2485.0,0.1207432]
[1729709656868,12.28539189,2485.1,2485.0,0.1207432]
[1729709663171,11.73539189,2485.1,2485.0,0.1207432]
[1729709663374,4.12953988,2485.1,2485.0,0.1207432]
[1729709664375,4.67953988,2485.1,2485.0,0.1207432]
[1729709664577,0.10555988,2485.1,2485.0,0.1207432]
[1729709664880,4.02382,2485.2,2485.0,0.1207432]
[1729709665100,0.10457928,2485.1,2485.0,0.1207432]
[1729709665557,4.12855928,2485.1,2485.0,0.1207432]
[1729709665754,7.91781129,2485.1,2485.0,0.1207432]
[1729709665960,8.46781129,2485.1,2485.0,0.1207432]
[1729709668389,12.29761129,2485.1,2485.0,0.1207432]
[1729709668965,0.8198,2484.5,2483.5,1.63988306]
[1729709669180,0.8198,2484.5,2483.5,0.8076]
[1729709669181,0.55,2483.9,2483.5,0.8076]
[1729709669361,0.55,2483.9,2483.2,4.85924306]
[1729709669362,0.55,2483.6,2483.1,4.83474]
[1729709669549,0.55,2483.6,2483.2,4.02692]
[1729709669750,0.10414641,2483.5,2483.2,4.02692]
[1729709670151,0.10414641,2483.5,2483.3,4.02686]
[1729709670496,0.10414641,2483.5,2483.4,4.02673]
[1729709670692,0.10414641,2483.5,2483.4,4.83433]
[1729709670877,0.55,2483.9,2483.5,4.02655]
[1729709671186,0.55,2484.1,2483.6,4.02625]
[1729709671390,0.55,2484.1,2483.6,8.05257]
[1729709671886,0.55,2484.1,2483.7,4.02615]
[1729709672049,0.55,2484.1,2483.6,4.02625]
[1729709672252,4.02578,2484.0,2483.5,4.02655]
[1729709672474,4.02578,2484.0,2483.4,4.83422]
[1729709672475,0.55,2483.9,2483.4,4.83422]
[1729709672994,4.576,2483.9,2483.2,4.02691]
[1729709673285,4.576,2483.9,2483.2,8.05386]
[1729709673286,0.55,2483.7,2483.2,8.05386]
[1729709673461,4.57635,2483.7,2483.2,4.02691]
[1729709674088,0.55,2483.3,2483.0,0.7746]
[1729709674681,4.02706,2483.2,2483.0,0.7746]
[1729709675199,4.02706,2483.2,2482.7,0.7906]